[Event "Polofinale MCR junioru 2023"]
[Site "Czech Republic"]
[Date "2023.11.18"]
[Round "9.36"]
[White "Hampl, David"]
[Black "Lieber, Lukas"]
[Result "0-1"]
[TimeControl "90 min per 40 moves + 15 min + 30 sec / move from move 1"]
[WhiteFideId "398802"]
[BlackFideId "23700688"]
[WhiteElo "1801"]
[BlackElo "1959"]

1. d4 {[%clk 01:22:29]} {[%emt 00:08:29]} d5 {[%clk 01:30:04]} {[%emt
00:00:54]} 2. Bf4 {[%clk 01:22:35]} {[%emt 00:00:28]} e6 {[%clk 01:30:05]}
{[%emt 00:00:26]} 3. Nf3 {[%clk 01:22:02]} {[%emt 00:01:05]} Bd6 {[%clk
01:30:20]} {[%emt 00:00:12]} 4. e3 {[%clk 01:20:55]} {[%emt 00:01:40]} Nf6
{[%clk 01:29:58]} {[%emt 00:00:48]} 5. Ne5 {[%clk 01:19:56]} {[%emt 00:01:33]}
O-O {[%clk 01:29:06]} {[%emt 00:01:21]} 6. Bd3 {[%clk 01:20:00]} {[%emt
00:00:27]} c5 {[%clk 01:29:14]} {[%emt 00:00:20]} 7. c3 {[%clk 01:19:42]}
{[%emt 00:00:50]} Qc7 {[%clk 01:26:36]} {[%emt 00:03:06]} 8. Nd2 {[%clk
01:15:32]} {[%emt 00:04:42]} b6 {[%clk 01:24:55]} {[%emt 00:02:09]} 9. g4
{[%clk 01:13:44]} {[%emt 00:02:20]} Nfd7 {[%clk 01:18:59]} {[%emt 00:06:23]} 10.
g5 {[%clk 01:10:32]} {[%emt 00:03:44]} Nxe5 {[%clk 01:17:12]} {[%emt 00:02:17]}
11. dxe5 {[%clk 01:08:39]} {[%emt 00:02:24]} Bxe5 {[%clk 01:16:46]} {[%emt
00:00:53]} 12. Bxh7+ {[%clk 01:07:02]} {[%emt 00:02:09]} Kxh7 {[%clk 01:17:13]}
{[%emt 00:00:02]} 13. Qh5+ {[%clk 01:07:20]} {[%emt 00:00:14]} Kg8 {[%clk
01:17:41]} {[%emt 00:00:01]} 14. g6 {[%clk 01:07:08]} {[%emt 00:00:43]} fxg6
{[%clk 01:18:09]} {[%emt 00:00:02]} 15. Qxe5 {[%clk 01:07:17]} {[%emt
00:00:20]} Qxe5 {[%clk 01:18:35]} {[%emt 00:00:03]} 16. Bxe5 {[%clk 01:07:43]}
{[%emt 00:00:05]} Nc6 {[%clk 01:18:13]} {[%emt 00:00:49]} 17. Bg3 {[%clk
01:06:27]} {[%emt 00:01:48]} e5 {[%clk 01:16:33]} {[%emt 00:02:08]} 18. O-O-O
{[%clk 01:00:49]} {[%emt 00:06:10]} Bf5 {[%clk 01:14:17]} {[%emt 00:02:44]} 19.
e4 {[%clk 00:58:53]} {[%emt 00:02:29]} dxe4 {[%clk 01:12:26]} {[%emt 00:02:18]}
20. Rde1 {[%clk 00:57:33]} {[%emt 00:01:53]} Be6 {[%clk 01:11:51]} {[%emt
00:01:03]} 21. b3 {[%clk 00:54:04]} {[%emt 00:04:02]} a5 {[%clk 01:11:24]}
{[%emt 00:00:56]} 22. a4 {[%clk 00:46:11]} {[%emt 00:08:24]} Rad8 {[%clk
01:10:12]} {[%emt 00:01:39]} 23. Kc2 {[%clk 00:36:45]} {[%emt 00:09:57]} Rd7
{[%clk 01:08:06]} {[%emt 00:02:35]} 24. Bh4 {[%clk 00:27:57]} {[%emt 00:09:19]}
g5 {[%clk 01:06:54]} {[%emt 00:01:40]} 25. Bxg5 {[%clk 00:26:34]} {[%emt
00:01:56]} Rxf2 {[%clk 01:07:19]} {[%emt 00:00:02]} 26. Be3 {[%clk 00:26:49]}
{[%emt 00:00:17]} Rg2 {[%clk 01:05:34]} {[%emt 00:02:12]} 27. Reg1 {[%clk
00:26:41]} {[%emt 00:00:41]} Re2 {[%clk 01:04:55]} {[%emt 00:01:07]} 28. Re1
{[%clk 00:27:07]} {[%emt 00:00:05]} Bg4 {[%clk 01:03:56]} {[%emt 00:01:27]} 29.
Rxe2 {[%clk 00:22:53]} {[%emt 00:04:46]} Bxe2 {[%clk 01:03:08]} {[%emt
00:01:16]} 30. Re1 {[%clk 00:23:05]} {[%emt 00:00:21]} Bd3+ {[%clk 01:02:29]}
{[%emt 00:01:07]} 31. Kc1 {[%clk 00:20:44]} {[%emt 00:02:53]} Rf7 {[%clk
01:01:05]} {[%emt 00:01:51]} 32. Nc4 {[%clk 00:20:18]} {[%emt 00:00:59]} Bxc4
{[%clk 01:00:13]} {[%emt 00:01:20]} 33. bxc4 {[%clk 00:20:45]} {[%emt
00:00:05]} Rf3 {[%clk 00:59:34]} {[%emt 00:01:07]} 34. Kd2 {[%clk 00:19:20]}
{[%emt 00:01:56]} Rh3 {[%clk 00:58:06]} {[%emt 00:01:56]} 35. Bg1 {[%clk
00:18:23]} {[%emt 00:01:30]} Ne7 {[%clk 00:56:38]} {[%emt 00:01:56]} 36. Rb1
{[%clk 00:11:32]} {[%emt 00:07:23]} Nc8 {[%clk 00:55:07]} {[%emt 00:01:59]} 37.
Bxc5 {[%clk 00:09:23]} {[%emt 00:02:41]} bxc5 {[%clk 00:54:30]} {[%emt
00:01:07]} 38. Rb8 {[%clk 00:09:32]} {[%emt 00:00:22]} Rd3+ {[%clk 00:54:56]}
{[%emt 00:00:03]} 39. Ke2 {[%clk 00:09:11]} {[%emt 00:00:52]} Rd8 {[%clk
00:54:48]} {[%emt 00:00:37]} 40. Rb5 {[%clk 00:07:35]} {[%emt 00:02:07]} Nd6
{[%clk 00:51:57]} {[%emt 00:03:19]} 41. Rxc5 {[%clk 00:07:08]} {[%emt
00:00:57]} Rc8 {[%clk 00:52:25]} {[%emt 00:00:03]} 42. Rxe5 {[%clk 00:06:57]}
{[%emt 00:00:42]} Rxc4 {[%clk 00:51:39]} {[%emt 00:01:15]} 43. Rxa5 {[%clk
00:06:10]} {[%emt 00:01:17]} Rxc3 {[%clk 00:52:07]} {[%emt 00:00:01]} 44. Ra6
{[%clk 00:05:54]} {[%emt 00:00:47]} Nc4 {[%clk 00:52:07]} {[%emt 00:00:28]} 45.
Rc6 {[%clk 00:05:28]} {[%emt 00:00:58]} Rc2+ {[%clk 00:51:02]} {[%emt
00:01:34]} 46. Ke1 {[%clk 00:05:39]} {[%emt 00:00:20]} Ne3 {[%clk 00:49:53]}
{[%emt 00:01:39]} 47. Re6 {[%clk 00:05:37]} {[%emt 00:00:33]} Rxh2 {[%clk
00:48:57]} {[%emt 00:01:24]} 48. Rxe4 {[%clk 00:05:55]} {[%emt 00:00:13]} Nf5
{[%clk 00:48:51]} {[%emt 00:00:35]} 49. a5 {[%clk 00:05:49]} {[%emt 00:00:37]}
Ra2 {[%clk 00:48:44]} {[%emt 00:00:36]} 50. Re8+ {[%clk 00:06:07]} {[%emt
00:00:13]} Kf7 {[%clk 00:48:53]} {[%emt 00:00:21]} 51. Ra8 {[%clk 00:06:32]}
{[%emt 00:00:05]} g5 {[%clk 00:48:51]} {[%emt 00:00:30]} 52. a6 {[%clk
00:06:46]} {[%emt 00:00:19]} g4 {[%clk 00:49:07]} {[%emt 00:00:13]} 53. a7
{[%clk 00:06:32]} {[%emt 00:00:44]} Kg7 {[%clk 00:49:33]} {[%emt 00:00:02]} 54.
Kf1 {[%clk 00:06:49]} {[%emt 00:00:15]} Ne3+ {[%clk 00:48:51]} {[%emt
00:01:11]} 55. Kg1 {[%clk 00:06:56]} {[%emt 00:00:25]} g3 {[%clk 00:49:00]}
{[%emt 00:00:20]} 56. Re8 {[%clk 00:06:06]} {[%emt 00:01:21]} Ra1# {[%emt
00:00:14]} 0-1

[Event "Polofinale MCR junioru 2023"]
[Site "Czech Republic"]
[Date "2023.11.18"]
[Round "9.37"]
[White "Pistej, Tomas"]
[Black "Rucabado, Stefan"]
[Result "1-0"]
[TimeControl "90 min per 40 moves + 15 min + 30 sec / move from move 1"]
[WhiteFideId "23750740"]
[BlackFideId "23730315"]
[WhiteElo "1502"]
[BlackElo "1873"]

1. e4 {[%clk 01:30:48]} {[%emt 00:00:11]} g6 {[%clk 01:28:43]} {[%emt
00:02:16]} 2. d4 {[%clk 01:31:06]} {[%emt 00:00:13]} Bg7 {[%clk 01:29:09]}
{[%emt 00:00:05]} 3. Nc3 {[%clk 01:31:17]} {[%emt 00:00:18]} a6 {[%clk
01:29:33]} {[%emt 00:00:05]} 4. f4 {[%clk 01:31:12]} {[%emt 00:00:34]} b5
{[%clk 01:29:57]} {[%emt 00:00:08]} 5. Nf3 {[%clk 01:31:24]} {[%emt 00:00:17]}
Bb7 {[%clk 01:30:22]} {[%emt 00:00:05]} 6. Bd3 {[%clk 01:31:03]} {[%emt
00:00:50]} d6 {[%clk 01:30:47]} {[%emt 00:00:06]} 7. O-O {[%clk 01:30:27]}
{[%emt 00:01:05]} Nd7 {[%clk 01:31:05]} {[%emt 00:00:13]} 8. Be3 {[%clk
01:29:36]} {[%emt 00:01:21]} Ngf6 {[%clk 01:31:15]} {[%emt 00:00:20]} 9. h3
{[%clk 01:29:06]} {[%emt 00:00:59]} O-O {[%clk 01:30:32]} {[%emt 00:01:00]} 10.
Qd2 {[%emt 00:02:28]} c5 11. e5 {[%clk 01:20:28]} {[%emt 00:07:53]} Nd5 {[%clk
01:21:47]} {[%emt 00:09:15]} 12. Nxd5 {[%clk 01:16:29]} {[%emt 00:04:29]} Bxd5
{[%clk 01:22:15]} {[%emt 00:00:02]} 13. exd6 {[%clk 01:11:00]} {[%emt
00:05:59]} exd6 {[%clk 01:22:37]} {[%emt 00:00:08]} 14. dxc5 {[%clk 01:10:40]}
{[%emt 00:00:50]} Bxf3 {[%clk 01:20:24]} {[%emt 00:02:44]} 15. Rxf3 {[%clk
01:10:26]} {[%emt 00:00:44]} dxc5 {[%clk 01:20:48]} {[%emt 00:00:06]} 16. c4
{[%clk 01:08:00]} {[%emt 00:02:56]} bxc4 {[%clk 01:16:41]} {[%emt 00:04:38]} 17.
Bxc4 {[%clk 01:07:52]} {[%emt 00:00:38]} Nb6 {[%clk 01:16:41]} {[%emt
00:00:28]} 18. Qc2 {[%clk 00:53:48]} {[%emt 00:14:35]} Nxc4 {[%clk 01:11:33]}
{[%emt 00:05:39]} 19. Qxc4 {[%clk 00:54:08]} {[%emt 00:00:09]} Bxb2 {[%clk
01:11:45]} {[%emt 00:00:18]} 20. Rb1 {[%clk 00:53:59]} {[%emt 00:00:39]} Ba3
{[%clk 00:59:51]} {[%emt 00:12:22]} 21. Bxc5 {[%clk 00:49:05]} {[%emt
00:05:26]} Bxc5+ {[%clk 01:00:18]} {[%emt 00:00:04]} 22. Qxc5 {[%clk 00:49:27]}
{[%emt 00:00:08]} Rc8 {[%clk 01:00:41]} {[%emt 00:00:06]} 23. Qa3 {[%clk
00:48:38]} {[%emt 00:01:19]} Rc2 {[%clk 00:59:43]} {[%emt 00:01:28]} 24. Qd3
{[%clk 00:12:10]} {[%emt 00:36:58]} Qc8 {[%clk 00:59:02]} {[%emt 00:01:12]} 25.
Rf2 {[%clk 00:11:42]} {[%emt 00:00:57]} Rxf2 {[%clk 00:58:49]} {[%emt
00:00:44]} 26. Kxf2 {[%clk 00:11:58]} {[%emt 00:00:13]} Rd8 {[%clk 00:58:55]}
{[%emt 00:00:24]} 27. Qb3 {[%clk 00:09:57]} {[%emt 00:02:31]} Qc5+ {[%clk
00:56:40]} {[%emt 00:02:44]} 28. Kg3 {[%clk 00:08:54]} {[%emt 00:01:34]} h5
{[%clk 00:56:28]} {[%emt 00:00:43]} 29. Rd1 {[%clk 00:06:44]} {[%emt 00:02:40]}
Re8 {[%clk 00:56:39]} {[%emt 00:00:19]} 30. Rd3 {[%clk 00:05:53]} {[%emt
00:01:21]} Re2 {[%clk 00:56:15]} {[%emt 00:00:54]} 31. Kh2 {[%clk 00:02:15]}
{[%emt 00:04:08]} Qf2 {[%clk 00:55:37]} {[%emt 00:01:09]} 32. Rd8+ {[%clk
00:02:04]} {[%emt 00:00:41]} Kg7 {[%clk 00:54:46]} {[%emt 00:01:22]} 33. Qc3+
{[%clk 00:02:07]} {[%emt 00:00:27]} f6 {[%clk 00:55:08]} {[%emt 00:00:07]} 34.
Qc7+ {[%clk 00:02:23]} {[%emt 00:00:15]} 1-0

[Event "Polofinale MCR junioru 2023"]
[Site "Czech Republic"]
[Date "2023.11.18"]
[Round "9.38"]
[White "Fizerova, Lucie"]
[Black "Striz, Tadeas"]
[Result "1-0"]
[TimeControl "90 min per 40 moves + 15 min + 30 sec / move from move 1"]
[WhiteFideId "385115"]
[BlackFideId "23723530"]
[WhiteElo "1886"]
[BlackElo "1371"]

1. Nf3 {[%clk 01:27:52]} {[%emt 00:03:07]} d5 {[%clk 01:30:36]} {[%emt
00:00:24]} 2. g3 {[%clk 01:28:08]} {[%emt 00:00:14]} Nf6 {[%clk 01:30:28]}
{[%emt 00:00:38]} 3. Bg2 {[%clk 01:28:08]} {[%emt 00:00:30]} e6 {[%clk
01:29:48]} {[%emt 00:01:10]} 4. d3 {[%clk 01:28:03]} {[%emt 00:00:35]} Be7
{[%clk 01:29:01]} {[%emt 00:01:17]} 5. Nbd2 {[%clk 01:27:30]} {[%emt 00:01:03]}
Nbd7 {[%clk 01:25:11]} {[%emt 00:04:21]} 6. O-O {[%clk 01:26:52]} {[%emt
00:01:08]} O-O {[%clk 01:25:16]} {[%emt 00:00:25]} 7. e4 {[%clk 01:26:45]}
{[%emt 00:00:37]} dxe4 {[%clk 01:19:45]} {[%emt 00:06:02]} 8. dxe4 {[%clk
01:27:03]} {[%emt 00:00:12]} e5 {[%clk 01:20:04]} {[%emt 00:00:11]} 9. Qe2
{[%clk 01:25:26]} {[%emt 00:02:07]} c6 {[%clk 01:17:30]} {[%emt 00:03:04]} 10.
b3 {[%clk 01:22:37]} {[%emt 00:03:19]} Qc7 {[%clk 01:17:12]} {[%emt 00:00:48]}
11. Bb2 {[%clk 01:22:47]} {[%emt 00:00:20]} b5 {[%clk 01:17:30]} {[%emt
00:00:12]} 12. Rfd1 {[%clk 01:18:48]} {[%emt 00:04:29]} Re8 {[%clk 01:16:32]}
{[%emt 00:01:27]} 13. h3 {[%clk 01:15:07]} {[%emt 00:04:10]} a5 {[%clk
01:09:22]} {[%emt 00:07:41]} 14. a4 {[%clk 01:13:10]} bxa4 {[%clk 01:03:45]}
{[%emt 00:08:35]} 15. Rxa4 {[%clk 01:13:05]} Bf8 {[%clk 01:01:45]} {[%emt
00:03:04]} 16. Rda1 {[%clk 01:09:50]} Nc5 {[%clk 00:59:46]} {[%emt 00:05:44]}
17. R4a2 {[%clk 01:09:17]} h6 {[%clk 00:41:32]} {[%emt 00:20:17]} 18. Bc3
{[%clk 01:03:05]} Nb7 {[%clk 00:41:32]} 19. Nc4 {[%clk 01:03:05]} Nd7 {[%clk
00:41:32]} 20. Nxa5 {[%clk 01:03:05]} Nxa5 {[%clk 00:41:32]} 21. Rxa5 {[%clk
01:03:05]} Bb7 {[%clk 00:32:12]} {[%emt 00:22:55]} 22. Rxa8 {[%clk 00:58:16]}
Rxa8 {[%clk 00:32:12]} 23. Rxa8 {[%clk 00:58:16]} Bxa8 {[%clk 00:32:12]} 24. h4
{[%clk 00:55:20]} {[%emt 00:05:53]} Bd6 {[%clk 00:32:31]} {[%emt 00:01:10]} 25.
Nd2 {[%clk 00:51:45]} {[%emt 00:04:05]} Nf6 {[%clk 00:32:32]} {[%emt 00:00:29]}
26. Nc4 {[%emt 00:03:50]} 1-0

[Event "Polofinale MCR junioru 2023"]
[Site "Czech Republic"]
[Date "2023.11.18"]
[Round "9.39"]
[White "Brychta, David"]
[Black "Sklar, Petr"]
[Result "1/2-1/2"]
[TimeControl "90 min per 40 moves + 15 min + 30 sec / move from move 1"]
[WhiteFideId "23742798"]
[BlackFideId "23731141"]
[WhiteElo "1230"]
[BlackElo "1160"]

1. c4 {[%clk 01:30:54]} {[%emt 00:00:06]} f5 {[%clk 01:30:55]} {[%emt
00:00:05]} 2. Nc3 {[%clk 01:31:20]} {[%emt 00:00:04]} Nf6 {[%clk 01:31:20]}
{[%emt 00:00:06]} 3. d4 {[%clk 01:31:45]} {[%emt 00:00:05]} g6 {[%clk
01:31:42]} {[%emt 00:00:08]} 4. Nf3 {[%clk 01:32:07]} {[%emt 00:00:07]} Bg7
{[%clk 01:32:05]} {[%emt 00:00:07]} 5. Bg5 {[%clk 01:32:24]} {[%emt 00:00:14]}
h6 {[%clk 01:32:09]} {[%emt 00:00:25]} 6. Bd2 {[%clk 01:32:31]} {[%emt
00:00:23]} d6 {[%clk 01:32:20]} {[%emt 00:00:19]} 7. g3 {[%clk 01:32:39]}
{[%emt 00:00:22]} O-O {[%clk 01:32:22]} {[%emt 00:00:28]} 8. Bg2 {[%clk
01:33:06]} {[%emt 00:00:03]} Nc6 {[%clk 01:32:13]} {[%emt 00:00:38]} 9. e3
{[%clk 01:33:11]} {[%emt 00:00:25]} e5 {[%clk 01:32:20]} {[%emt 00:00:23]} 10.
O-O {[%clk 01:30:40]} {[%emt 00:03:01]} Kh7 {[%clk 01:32:12]} {[%emt 00:00:39]}
11. Qc2 {[%clk 01:24:44]} {[%emt 00:06:25]} e4 {[%clk 01:30:15]} {[%emt
00:02:27]} 12. Ne1 {[%clk 01:20:01]} {[%emt 00:05:14]} d5 {[%clk 01:26:27]}
{[%emt 00:04:18]} 13. cxd5 {[%clk 01:20:00]} {[%emt 00:00:31]} Nxd5 {[%clk
01:26:48]} {[%emt 00:00:09]} 14. Nxd5 {[%clk 01:19:37]} {[%emt 00:00:53]} Qxd5
{[%clk 01:27:08]} {[%emt 00:00:11]} 15. Qc1 {[%clk 01:11:36]} {[%emt 00:08:31]}
Be6 {[%clk 01:20:28]} {[%emt 00:07:09]} 16. Nc2 {[%clk 01:11:41]} {[%emt
00:00:25]} Qb5 {[%clk 01:19:07]} {[%emt 00:01:50]} 17. Na3 {[%clk 01:10:44]}
{[%emt 00:01:27]} Qd5 {[%clk 01:17:25]} {[%emt 00:02:12]} 18. Nc2 {[%clk
01:04:36]} {[%emt 00:06:39]} Qd7 {[%clk 01:17:00]} {[%emt 00:00:55]} 19. Nb4
{[%clk 01:00:22]} {[%emt 00:04:44]} Ne7 {[%clk 01:13:24]} {[%emt 00:04:05]} 20.
Nc2 {[%clk 00:56:33]} {[%emt 00:04:20]} Bc4 {[%clk 01:09:23]} {[%emt 00:04:31]}
21. Re1 {[%clk 00:55:27]} {[%emt 00:01:36]} Bf7 {[%clk 01:02:43]} {[%emt
00:07:10]} 22. Bb4 {[%clk 00:50:12]} {[%emt 00:05:45]} Rfd8 {[%clk 01:02:42]}
{[%emt 00:00:30]} 23. Bxe7 {[%clk 00:49:48]} {[%emt 00:00:55]} Qxe7 {[%clk
01:02:59]} {[%emt 00:00:13]} 24. b3 {[%clk 00:49:53]} {[%emt 00:00:25]} c5
{[%clk 01:01:47]} {[%emt 00:01:42]} 25. Rd1 {[%clk 00:49:39]} {[%emt 00:00:44]}
Rac8 {[%clk 01:01:55]} {[%emt 00:00:22]} 26. Qa3 {[%clk 00:48:09]} {[%emt
00:02:00]} b5 {[%clk 00:58:36]} {[%emt 00:03:49]} 27. Rab1 {[%clk 00:43:06]}
{[%emt 00:05:33]} b4 {[%clk 00:50:53]} {[%emt 00:08:13]} 28. Qa5 {[%clk
00:37:10]} {[%emt 00:06:26]} cxd4 {[%clk 00:46:02]} {[%emt 00:05:21]} 29. Nxd4
{[%clk 00:37:14]} {[%emt 00:00:26]} Qb7 {[%clk 00:44:14]} {[%emt 00:02:18]} 30.
Nxf5 {[%clk 00:24:48]} {[%emt 00:12:56]} Rxd1+ {[%clk 00:43:54]} {[%emt
00:00:51]} 31. Rxd1 {[%clk 00:25:07]} {[%emt 00:00:11]} gxf5 {[%clk 00:44:08]}
{[%emt 00:00:15]} 32. Qxf5+ {[%clk 00:25:35]} {[%emt 00:00:03]} Bg6 {[%clk
00:43:46]} {[%emt 00:00:52]} 33. Bxe4 {[%clk 00:24:06]} {[%emt 00:01:59]} Bxf5
{[%clk 00:39:07]} {[%emt 00:05:08]} 34. Bxb7 {[%clk 00:24:30]} {[%emt
00:00:06]} Rc2 {[%clk 00:39:25]} {[%emt 00:00:12]} 35. e4 {[%clk 00:23:16]}
{[%emt 00:01:45]} Bh3 {[%clk 00:37:03]} {[%emt 00:02:50]} 36. e5 {[%clk
00:22:34]} {[%emt 00:01:13]} Kg8 {[%clk 00:36:43]} {[%emt 00:00:48]} 37. f4
{[%clk 00:21:22]} {[%emt 00:01:44]} Kf8 {[%clk 00:36:12]} {[%emt 00:01:00]} 38.
Bd5 {[%clk 00:20:39]} {[%emt 00:01:13]} Ke7 {[%clk 00:35:47]} {[%emt 00:00:55]}
39. Bc4 {[%clk 00:20:45]} {[%emt 00:00:25]} Rg2+ {[%clk 00:32:01]} {[%emt
00:04:16]} 40. Kh1 {[%clk 00:20:58]} {[%emt 00:00:17]} Rxa2 {[%clk 00:31:44]}
{[%emt 00:00:47]} 41. Kg1 {[%clk 00:21:22]} {[%emt 00:00:06]} Rg2+ {[%clk
00:28:55]} {[%emt 00:03:19]} 42. Kh1 {[%clk 00:21:47]} {[%emt 00:00:05]} Ra2
{[%clk 00:26:18]} {[%emt 00:03:06]} 43. Kg1 {[%clk 00:22:13]} {[%emt 00:00:04]}
1/2-1/2